[Event "FIDE Rating Open 2024"]
[Site "Dhaka"]
[Date "2024.01.23"]
[Round "9.6"]
[White "Swarnavo Choudhury"]
[Black "Saiful Islam, Chowdhury"]
[Result "1-0"]
[ECO "C97"]
[WhiteElo "2056"]
[BlackElo "2130"]
[Annotator "NA RC"]
[PlyCount "85"]
[EventDate "2024.01.16"]
[EventType "swiss"]
[EventCountry "BAN"]
[SourceTitle "playchess.com"]
[Source "ChessBase"]
[SourceQuality "1"]
[TimeControl "5400+30"]

1. e4 {[%emt 0:09:03]} e5 {[%emt 0:01:08]} 2. Nf3 {[%emt 0:00:07]} Nc6 {[%emt 0:00:05]} 3. Bb5 {[%emt 0:00:05]} a6 {[%emt 0:00:04]} 4. Ba4 {[%emt 0:00:05]} Nf6 {[%emt 0:00:06]} 5. O-O {[%emt 0:00:06]} Be7 {[%emt 0:00:09]} 6. Re1 {[%emt 0:00:07]} b5 {[%emt 0:00:16]} 7. Bb3 {[%emt 0:00:05]} d6 {[%emt 0:00:10]} 8. c3 {[%emt 0:00:06]} O-O {[%emt 0:00:26]} 9. h3 {[%emt 0:00:06]} Na5 {[%emt 0:00:32]} 10. Bc2 {[%emt 0:00:05]} c5 {[%emt 0:00:09]} 11. d4 {[%emt 0:00:05]} Qc7 {[%emt 0:00:48]} 12. Nbd2 {[%emt 0:00:05]} Re8 {[%emt 0:04:43]} 13. d5 {[%emt 0:04:53]} g6 {[%emt 0:00:40] C97: Closed Ruy Lopez: Chigorin Defence: 11 d4 Qc7, sidelines.} 14. Nf1 {[%emt 0:00:16]} Bf8 {[%emt 0:00:10]} 15. Ng3 {[%emt 0:00:17]} Bd7 {[%emt 0:00:58]} 16. Nh2 {[%emt 0:04:35]} Bg7 {[%emt 0:02:21]} 17. f4 {[%emt 0:01:19]} exf4 {[%emt 0:06:25]} 18. Bxf4 {[%emt 0:00:38]} Nc4 {[%emt 0:00:13]} 19. b3 {[%emt 0:09:30]} Ne5 {[%emt 0:03:08]} 20. Nf3 {[%emt 0:04:40]} c4 {[%emt 0:00:52]} 21. Nxe5 {[%emt 0:07:03]} dxe5 {[%emt 0:00:10]} 22. Bd2 {[%emt 0:05:52]} h5 {[%emt 0:03:52]} 23. Qf3 {[%emt 0:02:19]} a5 {[%emt 0:05:14]} 24. Rf1 {[%emt 0:04:15]} Rf8 {[%emt 0:03:26]} 25. Bg5 {[%emt 0:03:48]} Ra6 {[%emt 0:00:56]} 26. a4 {[%emt 0:07:21]} cxb3 {[%emt 0:01:22]} 27. Bxb3 {[%emt 0:00:20]} bxa4 {[%emt 0:02:33]} 28. Bxa4 {[%emt 0:00:46]} Rc8 {[%emt 0:06:25]} 29. Ne2 {[%emt 0:05:57]} Bxa4 {[%emt 0:03:00]} 30. Rxa4 {[%emt 0:02:42]} Qb6+ {[%emt 0:00:26]} 31. Kh2 {[%emt 0:01:00]} Qb5 {[%emt 0:07:53]} 32. Rfa1 $11 {[%emt 0:03:10]} Nd7 {[%emt 0:01:47]} 33. Be7 {[%emt 0:07:36]} Nb6 {[%emt 0:00:48]} 34. R4a2 {[%emt 0:00:15]} a4 {[%emt 0:01:15]} 35. Rf1 {[%emt 0:02:33]} Qe8 {[%emt 0:03:02]} 36. Qd3 {[%emt 0:01:55]} Nc4 {[%emt 0:04:26]} 37. d6 {[%emt 0:02:39]} Qd7 {[%emt 0:00:24]} 38. Qd5 {[%emt 0:01:28]} Ra5 {[%emt 0:07:21]} 39. Qxf7+ {[%emt 0:00:30]} Kh7 {[%emt 0:05:23]} 40. Rf6 {[%emt 0:01:08]} Qe8 {[%emt 0:01:35]} 41. Qxe8 {[%emt 0:01:56]} Rxe8 {[%emt 0:00:07]} 42. d7 {[%emt 0:00:11]} Rea8 {[%emt 0:02:47]} 43. Rc6 {[%emt 0:01:32]} 1-0